Cogmind - Beta 17 @@@ ROGUE MODE // 2026.07.21 @ 15:32:37 Player: Ry645 Result: Destroyed by D-53 Grenadier with Mini Grenade Launcher Performance ------------- Evolutions (0) 0 Regions Visited (2) 400 Robots Destroyed (30) 150 Value Destroyed (422) 422 Prototype IDs (0) 0 Alien Tech Used (0) 0 Bonus (0) 0 TOTAL SCORE: 972 Bonus ------- None Cogmind --------- Core Integrity 0/250 Matter 108/300 Energy 123/125 System Corruption 0% Temperature Cool (1) Movement Walking (260) Ox2 Location -10/Mines Parts ------- > --- POWER (1) -------- Light Ion Engine > --- PROPULSION (2) --- Aluminum Leg > --- UTILITY (2) ------ Large Storage Unit Propulsion Shielding > --- WEAPON (2) ------- Assault Rifle Grenade Launcher > --- INVENTORY (15) --- Medium Matter Pod (40) Signal Interpreter Transport Network Coupler Propulsion Shielding Propulsion Shielding Hacking Suite Assault Rifle Assault Rifle Assault Rifle Assault Rifle Assault Rifle Datajack Peak State ------------ > --- POWER ------------ Ion Engine > --- PROPULSION ------- Light Treads Light Treads > --- UTILITY ---------- Large Storage Unit Large Storage Unit > --- WEAPON ----------- Light Assault Rifle Light Assault Rifle > --- INVENTORY -------- Light Ion Engine Small Storage Unit Small Matter Pod Transport Network Coupler Hacking Suite Light Assault Rifle Grenade Launcher Datajack [Rating: 8] Favorites ----------- Power Ion Engine Engine Ion Engine Propulsion Light Treads Treads Light Treads Leg Aluminum Leg Utility Large Storage Unit Storage Large Storage Unit Hackware Hacking Suite Protection Propulsion Shielding Weapon Assault Rifle Energy Gun EM Pulse Gun Ballistic Gun Assault Rifle Launcher Grenade Launcher Special Melee Weapon Datajack Build | -11 -10 -10 ------- Run | Yrd Mat Min Slots Evolved . | . . . Power . | . . . Propulsion . | . . . Utility . | . . . Weapon . | . . . Parts Attached 29 | 7 17 5 Power 5 | 2 2 1 Engine 5 | 2 2 1 Core . | . . . Reactor . | . . . Propulsion 5 | 2 3 . Treads 2 | 2 . . Leg 3 | . 3 . Wheel . | . . . Hover . | . . . Flight . | . . . Utility 5 | 1 4 . Device . | . . . Storage 3 | 1 2 . Processor . | . . . Hackware 1 | . 1 . Protection 1 | . 1 . Artifact . | . . . Weapon 14 | 2 8 4 Energy Gun 3 | 2 1 . Energy Cannon . | . . . Ballistic Gun 8 | . 5 3 Ballistic Cannon . | . . . Launcher 2 | . 1 1 Special Weapon . | . . . Impact Weapon . | . . . Slashing Weapon . | . . . Piercing Weapon . | . . . Special Melee Weapon 1 | . 1 . Unidentified Prototypes . | . . . Parts Lost 6 | . 3 3 Power 1 | . . 1 Propulsion 2 | . 1 1 Utility . | . . . Weapon 3 | . 2 1 Highest Loss Streak 2 | . 1 2 To Critical Strikes . | . . . Average Backups 8 | 2 7 13 Power . | . 1 . Propulsion . | . . . Utility 3 | . 2 6 Weapon 3 | 1 2 5 Tool/Special . | . . . Unused Backups 8 | . 2 6 Power . | . . . Propulsion 1 | . 1 . Utility 6 | . 1 5 Weapon 1 | . . 1 Tool/Special . | . . . Average Slot Usage (%) 92 | . 91 99 Engine 13 | . 14 13 Treads 12 | . 15 . Leg 12 | . 9 28 Storage 19 | . 20 14 Protection 4 | . 2 14 Energy Gun 8 | . 9 . Ballistic Gun 18 | . 17 25 Peak Build Rating 8 | 6 8 8 Average Rating 7 | 4 6 7 On Entrance 4 | . 6 8 Avg Prop Armor Cover (%) . | . . . Naked Turns . | . . . Heaviest Build 49 | 14 49 32 Greatest Support 40 | 40 40 20 Greatest Overweight (x) 2 | . 2 2 Average Overweight (x) 1 | . 1 1 Largest Inventory Capacity 15 | 8 15 15 Average Capacity 14 | 7 14 15 Most Carried 14 | 4 14 14 Average Carried 8 | 1 7 13 Final Capacity 15 | 8 15 15 Final Carried 14 | 2 14 12 Class Distribution -------------------- 91% | Mutant 8% | Scavenger-Mutant Dominant Class ---------------- Mutant | -10/Materials Mutant | -10/Mines Resources | -11 -10 -10 ----------- Run | Yrd Mat Min Matter Collected 759 | 273 403 83 Remotely . | . . . Salvage Created 973 | 84 756 133 Parts 74 | 5 56 13 Haulers Intercepted 2 | . 2 . Recyclers Shooed 5 | . 5 . Parts Field Recycled . | . . . Retrieved Matter . | . . . Parts Self-Destructed . | . . . Prevented . | . . . Parts Restored . | . . . Kills | -11 -10 -10 ------- Run | Yrd Mat Min Combat Hostiles Destroyed 19 | . 11 8 Guns 15 | . 7 8 AOE 3 | . 3 . Classes Destroyed 9 | 2 6 1 Worker 1 | . 1 . Tunneler 2 | 1 . 1 Hauler 2 | . 2 . Recycler 4 | 1 3 . Operator 3 | . 3 . Watcher 3 | . 3 . Swarmer 10 | . 6 4 Grunt 5 | . 5 . Assembled 4 | . . 4 Best Kill Streak 4 | 2 3 4 Combat Bots Only 3 | . 3 3 Max Kills in Single Turn 3 | 2 3 1 Gunslinging . | . . . Exploded 3 | . 3 . Melee . | . . . Uniques/NPCs Destroyed . | . . . Combat | -11 -10 -10 -------- Run | Yrd Mat Min Hostile Shots Fired 139 | . 93 46 Missed 36 | . 25 11 Hits 103 | . 68 35 Melee 4 | . . 4 Projectile 99 | . 68 31 AOE 8 | . . 8 Critical Strikes 1 | . 1 . Damage Taken 1382 | 30 729 623 Core 252 | 15 87 150 Absorbed by Shields . | . . . Redirected to Shielding 38 | . . 38 Core Remaining (%) 94 | 94 . . Volleys Fired 101 | 3 72 26 Largest 2 | 2 2 2 Hottest 80 | 80 80 50 Shots Fired 198 | 6 144 48 Gun 195 | 6 143 46 Cannon . | . . . Launcher 3 | . 1 2 Special . | . . . Kinetic 138 | . 92 46 Thermal . | . . . Explosive 3 | . 1 2 Electromagnetic 57 | 6 51 . Robot Hit Streak 7 | 1 6 7 Robot Miss Streak 4 | 1 4 2 Penetration Max . | . . . Secondary Targets 3 | . 1 2 Max Gunslinging Chain 1 | . 1 1 Shots Hit Robots 124 | 3 93 28 Core Hits 58 | 3 40 15 Critical Kills . | . . . Critical Parts Destroyed . | . . . Critical Strikes . | . . . Melee Attacks 5 | . 5 . Impact . | . . . Slashing . | . . . Piercing . | . . . Sneak Attacks 3 | . 3 . Combat Hostiles . | . . . Follow-up Attacks . | . . . Damage Inflicted 1874 | 140 1278 456 Guns 1416 | 43 989 384 Cannons . | . . . Explosions 414 | 97 248 69 Melee . | . . . Ramming 44 | . 41 3 Kinetic 930 | . 546 384 Thermal 233 | 97 136 . Explosive 181 | . 112 69 Electromagnetic 486 | 43 443 . Impact . | . . . Slashing . | . . . Piercing . | . . . Highest Corruption . | . . . Average Corruption . | . . . Corruption Purged . | . . . Corruption Blocked . | . . . Overload Shots . | . . . Overflow Damage 14 | . 14 . Projectiles . | . . . Explosions 14 | . 14 . Melee . | . . . Knockbacks 1 | . 1 . Impact 1 | . 1 . Kinetic . | . . . Secondary . | . . . Self-Inflicted Damage 58 | 30 28 . Shots 2 | 1 1 . Rammed 6 | . 6 . Targets Rammed 10 | . 9 1 Kicked 4 | . 3 1 Crushed . | . . . Highest Temperature 133 | 36 133 . Average Temperature 32 | 20 33 . Received Heat Transfer 246 | . 246 . Siege Activations . | . . . Martial Activations . | . . . Shielding Activations . | . . . Robots Disrupted . | . . . Combat Hostiles . | . . . Robots Corrupted 1 | . 1 . Combat Hostiles 1 | . 1 . Parts Fried 4 | . 4 . Impact Corruptions . | . . . Robots Melted . | . . . Combat Hostiles . | . . . Parts Melted . | . . . Heat Transferred 250 | 100 150 . Parts Sabotaged . | . . . Parts Stolen . | . . . Parts Stripped . | . . . Power Chain Reactions 4 | 1 3 . Alert | -11 -10 -10 ------- Run | Yrd Mat Min Maximum Alert Level . | . . . Low Security (%) 100 | 100 100 100 Level 1 . | . . . Level 2 . | . . . Level 3 . | . . . Level 4 . | . . . Level 5 . | . . . High Security . | . . . Max Security . | . . . Peak Influence 124 | 10 124 71 Initial 6 | . . 6 Average 31 | 1 37 11 Influence Increases 540 | 10 430 100 Destroy 0b10 Robot/C 300 | . 220 80 Destroy 0b10 Robot/NC 75 | 10 60 5 Destroy Leader 70 | . 60 10 Successful Hack 14 | . 14 . Destroy Structure 21 | . 16 5 Lose Combat Pursuer 60 | . 60 . Influence Decreases 540 | 10 413 117 Entered New Map 11 | . . 11 Time Decay 518 | 10 403 105 Lost Part 11 | . 10 1 Squads Dispatched 2 | . 2 . Investigation 1 | . 1 . Extermination . | . . . Reinforcement 1 | . 1 . Assault . | . . . Garrison . | . . . Intercept . | . . . Searches Triggered . | . . . Construction Impeded . | . . . Haulers Reinforced . | . . . Active Scanning Responses . | . . . Cargo Convoy Interrupts . | . . . Stealth | -11 -10 -10 --------- Run | Yrd Mat Min Distress Signals 2 | . 1 1 Communications Jammed . | . . . Distress Signals . | . . . Times Spotted 41 | . 29 12 Peak Tracking Total 3 | . 3 3 Tactical Retreats 5 | . 4 1 Traps | -11 -10 -10 ------- Run | Yrd Mat Min Traps Triggered 1 | . 1 . Indirectly . | . . . Trap Hack Attempts 2 | . 2 . Triggered . | . . . Disarmed 1 | . 1 . Reprogrammed . | . . . Reused . | . . . Traps Extracted . | . . . Installed . | . . . Triggered . | . . . Machines | -11 -10 -10 ---------- Run | Yrd Mat Min Machines Disabled 1 | . 1 . Max in Single Turn 1 | . 1 . Machines Repaired . | . . . Machines Dismantled . | . . . Machines Sabotaged . | . . . Overloaded Fab Kills . | . . . Hacking | -11 -10 -10 --------- Run | Yrd Mat Min Machines Accessed 9 | . 9 . Terminals 7 | . 7 . Fabricators . | . . . Repair Stations . | . . . Recycling Units 2 | . 2 . Scanalyzers . | . . . Garrison Access . | . . . Total Hacks 22 | . 22 . Successful 13 | . 13 . Failed 9 | . 9 . Catastrophic 1 | . 1 . Database Lockouts . | . . . Manual . | . . . Terminals 20 | . 20 . Fabricators . | . . . Repair Stations . | . . . Recycling Units 2 | . 2 . Scanalyzers . | . . . Garrison Access . | . . . Terminal Hacks 11 | . 11 . Emergency Access Points 1 | . 1 . Maintenance Status 2 | . 2 . Investigation Status 2 | . 2 . Assault Status 1 | . 1 . Hauler Manifests 2 | . 2 . Registered Prototypes 1 | . 1 . Zone Layout 2 | . 2 . Fabricator Hacks . | . . . Repair Station Hacks . | . . . Recycling Unit Hacks 2 | . 2 . Retrieve Components 2 | . 2 . Scanalyzer . | . . . Garrison Access Hacks . | . . . Unauthorized Hacks . | . . . Terminals . | . . . Fabricators . | . . . Repair Stations . | . . . Recycling Units . | . . . Scanalyzers . | . . . Garrison Access . | . . . Data Cores Recovered 1 | . 1 . Used . | . . . Hacking Detections 6 | . 6 . Full Trace Events . | . . . Feedback Events . | . . . Feedback Blocked . | . . . Robot Schematics Acquired . | . . . Robots Built . | . . . Authchips . | . . . Time . | . . . Total Robot Build Rating . | . . . Part Schematics Acquired . | . . . Parts Built . | . . . Authchips . | . . . Time . | . . . Total Part Build Rating . | . . . Part Studies Acquired . | . . . Parts Repaired . | . . . Time . | . . . Parts Recycled . | . . . Recycled Matter . | . . . Retrieved Matter . | . . . Retrieved Components 20 | . 20 . Parts Scanalyzed . | . . . Part Schematics Acquired . | . . . Parts Damaged . | . . . Bothacking | -11 -10 -10 ------------ Run | Yrd Mat Min Used RIF Installer . | . . . Robots Hacked 3 | . 3 . Non-combat 2 | . 2 . Combat 1 | . 1 . Robot Hacks Applied 3 | . 3 . parse_system 1 | . 1 . no_distress 2 | . 2 . Relay Couplers Released . | . . . Fabnet Peak Effective % . | . . . Robots Rewired . | . . . Allies Hacked . | . . . Hacks Repelled . | . . . Allies | -11 -10 -10 -------- Run | Yrd Mat Min Total Allies . | . . . Largest Group . | . . . Highest-Rated Group . | . . . Highest-Rated Ally . | . . . Total Orders . | . . . Ally Attacks . | . . . Total Damage . | . . . Kills . | . . . Allies Corrupted . | . . . Allies Melted . | . . . Intel | -11 -10 -10 ------- Run | Yrd Mat Min Active Infowar (turns) . | . . . Robot Analysis Total . | . . . Derelict Logs Recovered 1 | . . 1 Drone Launches . | . . . Drone Recoveries . | . . . Exploration | -11 -10 -10 ------------- Run | Yrd Mat Min Turns Passed 3441 | 119 2721 601 Spaces Moved 1387 | 66 1058 263 Core 12 | 12 . . Treads 621 | 54 567 . Legs 754 | . 491 263 Wheels . | . . . Hover . | . . . Flight . | . . . Fastest Speed 50 | 50 160 190 Average Speed 212 | 140 223 190 Slowest Speed 260 | 160 260 260 Overloaded Moves . | . . . Propulsion Burnouts . | . . . Robots Hopped . | . . . Potential Cave-ins . | . . . Cave-ins Triggered . | . . . Exploration Rate (%) 50 | 5 97 49 Regions Visited 2 Branch Regions 1 Pre-discovered Areas 1 | . . 1 Known Exits Taken . | . . . Unknown Exits Taken 2 | 1 1 . Scrap Searched . | . . . Spaces Dug . | . . . Terrain Destroyed 27 | 2 15 10 Melee . | . . . Projectile . | . . . AOE 27 | 2 15 10 Terrain Rammed . | . . . Walls Destroyed . | . . . Machines Disabled . | . . . Actions | -11 -10 -10 --------- Run | Yrd Mat Min Total 1680 | 87 1281 312 Wait 81 | 2 71 8 Move 1385 | 65 1057 263 Hop . | . . . Pick Up 38 | 8 30 . Fast Attach . | . . . Attach 26 | 7 16 3 Detach 5 | 1 3 1 Swap 14 | 1 3 10 Drop 13 | . 13 . Fire 101 | 3 72 26 Melee 5 | . 5 . Ram . | . . . Kick 4 | . 3 1 Crush 6 | . 6 . Escape Stasis . | . . . Rewire . | . . . Trap 2 | . 2 . Miscellaneous . | . . . Route ------- -11/Scrapyard -10/Materials (discovered 5 exits: [*Mat x3] / [*Min] / [*Sub]) -10/Mines (discovered 2 exits: [*Mat] / [*Sub]) History --------- Turn | Location | Event 11 | -11/Scrapyard | Discovered new exit (range 16) 120 | -11/Scrapyard | Entered Materials 313 | -10/Materials | Build established: Mutant 826 | -10/Materials | Discovered new exit (range 8) 1184 | -10/Materials | Discovered new exit (range 11) 1520 | -10/Materials | Derelicts attacked the area 1574 | -10/Materials | Discovered new exit (range 15) 1893 | -10/Materials | Discovered new exit (range 15) 2619 | -10/Materials | Discovered new exit (range 13) 2841 | -10/Materials | Entered Mines 2859 | -10/Mines | Core integrity fell below 50% 2863 | -10/Mines | Met a Derelict bent on vengeance 2890 | -10/Mines | Discovered new exit (range 10) 3078 | -10/Mines | Found a hidden stash of uninstalled traps 3096 | -10/Mines | Assembled infested the area 3107 | -10/Mines | Learned location of Zion (-6) 3216 | -10/Mines | Core integrity fell below 20% 3376 | -10/Mines | Discovered new exit (range 6) 3442 | -10/Mines | Destroyed by D-53 Grenadier with Mini Grenade Launcher Last Messages --------------- 03107_ Acquired derelict log, extracted data. World map updated: -6/Zion. 03139_ as-92586 destroyed. 03157_ Grenade Launcher destroyed. 03157_ Ion Engine destroyed. 03162_ The unstable cave ceiling collapses. 03173_ as-91030 destroyed. 03173_ Switching to secondary target: as-03789. 03180_ The unstable cave ceiling collapses. 03185_ as-03789 destroyed. 03188_ Acquired 10 matter. 03205_ The unstable cave ceiling collapses. 03217_ Destroyed Asb. Hover Unit. 03217_ as-95790 destroyed. 03246_ K-01 Serf collects debris. 03367_ T-07 Excavator is excavating. 03376_ EXIT=FOUND 03380_ T-07 Excavator is excavating. 03397_ Kicked T-07 Excavator. 03440_ Aluminum Leg destroyed. Map ----- +----------------------------------------------------+ | | | ???????????????????????????????????????????? | | ???????????????????????????????????????????? | | #####?#####????????????????????????????????? | | # ### ##???????????????????????????????? | | #???????????????????????????????? | | #????????????????????????????????? | | # #???????????????????#####????????? | | ### #???????????????????# ###??????? | | ##?# ####????????????????# <#??????? | | ##??# ###??###?????????# #???????? | | ##??# ### #?????????# #???????? | | #??# #?????????# #???????? | | < #??# ##?????????## ####?????? | | ##??# #####??????????# ##????? | | ####???# ##???###????????# #????? | | ???????# ##??### ########?## #????? | | ???????## #??## ###### ##????? | | ????????# #??# ##### #### #?????? | | ????????# ###??# ###?# ### #### #?????? | | ????????# #????# ## ## ### #?????? | | ??????### #????### # # ########?????? | | ??????# #??????### ##??????????? | | ??????# ##???????# ##?????????? | | ??????# ##??????## #?????????? | | ??????## ##?????# @ #?????????? | | ???????## #?????## ##?????????? | | ????????# ##### ## #??????????? | | ????????# ##?????????? | | ???????## * ##????????? | | ???????# ###### ###%! #####????? | | ???????# ##????##??#= d t ##???? | | ???????# ##?????????# ##??? | | ???????# =#??????????# ## #??? | | ???????# ##????????## d ### #??? | | ????#### #???????## t ### #??? | | ???## #???????# # ##??? | | ### ##????? ##??? | | * ##????? #??? | | % ##???? ## % #??? | | ### ! & ####?##?## ##??? | | ??# & ##????##### #???? | | ???# & # ########## ##???? | | ### ##????? | | #??### % % ###?????? | | ######?????## ############ ##???????? | | ????????????### #??????????####????????? | | ?????????????### %####???????????????????? | | ???????????????# #???????????????????? | | ???????????????# # #???????????????????? | +----------------------------------------------------+ Best States ------------- Heat Dissipation 25 Energy Generation 10 Energy Capacity 250 Matter Stores 300 Matter Capacity 300 Sight Range 16 Terrain Scan Density 10 Propulsion Shielding 33 Evasion (%) 40 Recoil Reduction 2 Item Schematics ----------------- None Robot Schematics ------------------ None Fabricated ------------ Nothing Repaired ---------- Nothing Studied --------- None Alien Tech Used ----------------- None Achievements -------------- None Challenges ------------ None Game ------ Seed CloakingZioniteMultitool Manual? 0 Play Time 00:23:27 Cumulative 13.6 hours Start 2026.07.21 @ 15:09:21 End 2026.07.21 @ 15:32:37 Sessions 1 Manual Loads 0 Difficulty Rogue Special Mode None Game No. 12 Rogue 12 Adventurer 0 Explorer 0 Win Type - Total 0 Types 0/0/0/0/0/0/0/0/0/0 Lore% 4 Gallery% 11 Achievement% 13 Wizard Run 0 Options --------- Layout 2 ASCII 0 Keyboard 0 Movement Mouse Keybinds 1 Fullscreen 1 Font 24/Terminus Map View 50x44 Zoom Use 0% Tactical HUD 1 Map Filters NONE Filters NONE Steam 1 RUN: 843ea254-45ed-4e35-8257-3c80604eedad